bitfinex/quotes_SOLUSD_20240727
["timestamp","ask_amount","ask_price","bid_price","bid_amount"]
[1722073269582,16.6236,187.11,186.99,12.34]
[1722073269583,12.34,187.06,186.99,12.34]
[1722073270180,15.563,187.04,186.98,12.34]
[1722073270390,15.563,187.04,186.93,71.8703]
[1722073270391,15.563,187.04,186.97,12.34]
[1722073270595,12.34,187.02,186.96,12.34]
[1722073273190,12.34,187.0,186.89,22.5103]
[1722073273395,12.34,187.0,186.93,12.34]
[1722073273904,5.3468,187.03,186.93,12.34]
[1722073274072,12.34,187.01,186.95,12.34]
[1722073275500,1.56947269,187.03,186.95,12.34]
[1722073275501,12.34,187.02,186.95,12.34]
[1722073277105,15.563,187.11,187.01,24.68]
[1722073277305,15.563,187.11,187.07,12.34]
[1722073277610,15.563,187.11,187.08,12.34]
[1722073278910,15.563,187.11,187.02,45.0]
[1722073279115,27.903,187.11,187.05,12.34]
[1722073279293,27.903,187.11,187.04,12.34]
[1722073282687,12.34,187.1,187.04,12.34]
[1722073284221,12.34,187.1,187.03,12.34]
[1722073284603,13.67647816,187.1,187.03,12.34]
[1722073287227,12.34,187.09,187.02,12.34]
[1722073289032,12.34,187.07,187.01,12.34]
[1722073289202,12.34,187.07,186.96,6.0749]
[1722073289203,12.34,187.06,187.0,12.34]
[1722073289387,2.90606533,187.09,187.01,12.34]
[1722073289388,1.56947269,187.09,187.01,12.34]
[1722073289591,12.34,187.08,187.01,12.34]
[1722073293722,13.67660654,187.08,187.01,12.34]
[1722073298222,12.34,187.05,186.98,12.34]
[1722073298521,29.56630253,187.04,186.97,12.34]
[1722073299412,12.34,187.03,186.97,12.34]
[1722073300012,17.22630253,187.04,186.91,23.98885258]
[1722073300013,12.34,187.02,186.91,22.9193]
[1722073300341,12.34,187.01,186.95,12.34]
[1722073301346,12.34,186.99,186.92,12.34]
[1722073301524,12.34,186.98,186.92,12.34]
[1722073304134,12.34,186.98,186.91,12.34]
[1722073306042,12.34,186.98,186.92,12.34]
[1722073306225,1.56947269,187.01,186.92,12.34]
[1722073306226,12.34,186.99,186.92,12.34]
[1722073306855,12.34,186.99,186.87,7.3868847]
[1722073307031,12.34,186.99,186.92,12.34]
[1722073310957,12.34,186.98,186.91,12.34]
[1722073311858,1.33720562,187.0,186.92,12.34]
[1722073312051,1.56947269,187.01,186.95,12.34]
[1722073312229,1.56947269,187.01,186.97,12.34]
[1722073312429,28.2294,187.04,186.97,12.34]
[1722073313155,28.2294,187.04,186.98,12.34]
[1722073313343,15.8894,187.04,186.98,12.34]
[1722073314635,28.2294,187.04,186.97,12.34]
[1722073314836,28.2294,187.04,186.98,12.34]
[1722073314837,15.8894,187.04,186.98,12.34]
[1722073315058,15.8894,187.04,186.94,1.06953671]
[1722073315059,15.8894,187.04,186.99,12.34]
[1722073318047,15.8894,187.04,186.93,29.82918017]
[1722073318251,15.8894,187.04,187.0,12.34]
[1722073318656,15.8894,187.04,186.99,12.34]
[1722073323576,28.2294,187.04,186.98,12.34]
[1722073326069,15.8894,187.04,186.98,12.34]
[1722073326663,15.8894,187.04,186.99,12.34]
[1722073326867,15.8894,187.04,187.0,12.34]
[1722073327172,15.8894,187.04,187.01,12.34]
[1722073330274,15.8894,187.04,187.0,12.34]
[1722073333064,15.8894,187.04,186.99,12.34]
[1722073340364,15.8894,187.04,186.94,66.06937382]
[1722073340892,15.8894,187.04,186.99,12.34]
[1722073341092,15.8894,187.04,186.98,12.34]
[1722073344481,12.34,187.03,186.97,12.34]
[1722073344874,12.34,187.02,186.96,12.34]
[1722073345286,17.22632893,187.04,186.96,12.34]
[1722073345461,17.22632893,187.04,186.97,12.34]
[1722073345462,15.8894,187.04,186.97,12.34]
[1722073345667,28.2294,187.04,186.97,12.34]
[1722073353796,28.2294,187.04,186.96,12.34]
[1722073353990,12.34,187.03,186.96,12.34]
[1722073356099,15.8894,187.04,186.97,12.34]
[1722073356398,28.2294,187.04,186.97,12.34]
[1722073356619,15.2558,187.08,187.02,12.34]
[1722073356801,15.2558,187.08,187.03,12.34]
[1722073358507,15.2558,187.08,187.04,12.34]
[1722073358977,15.2558,187.08,186.96,33.55146019]
[1722073358978,15.2558,187.08,187.05,57.34]
[1722073359182,33.17811319,187.13,187.06,12.34]
[1722073359483,33.17811319,187.13,187.07,12.34]
[1722073362603,15.2558,187.13,187.09,12.34]
[1722073362809,15.2558,187.13,187.11,12.34]
[1722073363305,15.2558,187.13,187.1,12.34]
[1722073367126,15.2558,187.13,187.09,12.34]
[1722073367987,15.2558,187.13,187.08,12.34]
[1722073368599,27.5958,187.13,187.07,12.34]
[1722073368808,27.5958,187.13,187.06,12.34]
[1722073369107,12.34,187.12,187.06,12.34]
[1722073369896,12.34,187.12,187.05,12.34]
[1722073370503,15.2558,187.13,187.05,12.34]
[1722073371017,27.5958,187.13,187.06,12.34]
[1722073371918,28.93211322,187.13,187.06,12.34]
[1722073372105,27.5958,187.13,187.06,12.34]
[1722073373215,27.5958,187.13,187.02,12.34]
[1722073373216,12.34,187.12,187.05,12.34]
[1722073373613,13.67641776,187.12,187.05,12.34]
[1722073374912,12.34,187.11,186.99,6.84899383]
[1722073375115,12.34,187.09,187.03,12.34]
[1722073376523,1.33652243,187.08,187.03,12.34]
[1722073376902,12.34,187.09,187.03,12.34]
[1722073377107,12.34,187.09,187.02,12.34]
[1722073377421,13.67659015,187.09,187.02,12.34]
[1722073378316,12.34,187.09,187.02,12.34]
[1722073378616,12.34,187.07,186.96,16.3922]
[1722073378820,12.34,187.05,186.97,20.0]
[1722073379012,12.34,187.05,186.98,12.34]
[1722073379213,12.34,187.04,186.98,12.34]
[1722073381227,12.34,187.04,186.93,55.4477]
[1722073381420,1.33695147,187.03,186.94,65.0]
[1722073381623,1.33695147,187.03,186.97,12.34]
[1722073382010,15.3484,187.02,186.97,12.34]
[1722073382716,15.3484,187.02,187.0,12.34]
[1722073382923,27.6884,187.07,187.01,12.34]
[1722073383223,29.02510509,187.07,186.94,66.06955973]
[1722073383538,29.02510509,187.07,187.01,12.34]
[1722073383914,15.3484,187.07,187.01,12.34]
[1722073385116,27.6884,187.07,187.01,12.34]
[1722073388939,15.3484,187.07,187.01,12.34]
[1722073389321,15.3484,187.07,187.0,12.34]
[1722073389322,1.33671018,187.06,187.0,12.34]
[1722073389843,12.34,187.06,187.0,12.34]
[1722073390011,15.3484,187.07,187.02,12.34]
[1722073391041,29.02501386,187.07,187.01,12.34]
[1722073391356,27.6884,187.07,187.01,12.34]
[1722073392643,29.0250642,187.07,187.01,12.34]
[1722073392939,1.3366642,187.06,187.0,12.34]
[1722073393237,13.6766642,187.06,186.99,12.34]
[1722073394327,16.68514408,187.07,186.99,12.34]
[1722073394629,12.34,187.06,187.0,12.34]
[1722073395234,27.6884,187.07,187.0,12.34]
[1722073399651,33.034,187.07,187.0,12.34]
[1722073399845,5.3461,187.06,186.94,21.06939526]
[1722073400044,5.3461,187.06,186.98,12.34]
[1722073400045,12.34,187.05,186.98,12.34]
[1722073401153,12.34,187.03,186.92,21.06950984]
[1722073401447,12.34,187.02,186.96,12.34]
[1722073404061,12.34,187.03,186.96,12.34]
[1722073405438,1.33697418,187.06,186.97,12.34]
[1722073405752,12.34,187.04,186.97,12.34]
[1722073410353,5.64684158,187.06,186.96,12.34]
[1722073410354,12.34,187.03,186.96,12.34]
[1722073415554,12.34,187.02,186.91,16.3623]
[1722073415759,12.34,187.02,186.95,12.34]
[1722073415957,12.34,187.02,186.93,12.34]
[1722073415958,12.34,186.99,186.93,12.34]
[1722073416157,12.34,186.97,186.91,12.34]
[1722073416338,12.34,186.97,186.86,15.1636]
[1722073416546,12.34,186.97,186.9,12.34]
[1722073416947,12.34,186.97,186.91,12.34]
[1722073417143,12.34,186.98,186.91,12.34]
[1722073417951,1.33720562,187.0,186.91,12.34]
[1722073418148,12.34,186.98,186.91,12.34]
[1722073418967,13.67720562,186.97,186.9,12.34]
[1722073419155,12.34,186.97,186.9,12.34]
[1722073419745,12.34,186.94,186.84,6.5292]
[1722073419947,12.34,186.94,186.87,13.1393847]
[1722073420146,12.34,186.93,186.87,0.7993847]
[1722073424263,12.34,186.94,186.87,13.1393847]
[1722073425558,16.3567,186.96,186.88,12.34]
[1722073425763,12.34,186.95,186.89,12.34]
[1722073426465,12.34,186.95,186.87,0.7993847]
[1722073426466,12.34,186.93,186.87,0.7993847]
[1722073426773,21.7055,186.96,186.87,13.1393847]
[1722073426956,12.34,186.94,186.87,13.1393847]
[1722073429162,12.34,186.93,186.87,13.1393847]
[1722073429377,12.34,186.93,186.87,0.7993847]
[1722073429977,12.34,186.94,186.87,13.1393847]
[1722073433085,21.7055,186.96,186.87,13.1393847]
[1722073433086,12.34,186.93,186.87,0.7993847]
[1722073434986,12.34,186.92,186.87,0.7993847]
[1722073435363,16.3567,186.96,186.87,1.86954746]
[1722073435583,12.34,186.93,186.87,1.86954746]
[1722073435883,12.34,186.93,186.87,14.20954746]
[1722073437885,12.34,186.93,186.87,13.1393847]
[1722073438086,16.3567,186.96,186.87,13.1393847]
[1722073438087,12.34,186.94,186.87,13.1393847]
[1722073438574,12.34,186.88,186.87,0.7993847]
[1722073439972,1.33720562,186.9,186.87,0.7993847]
[1722073441188,6.68770562,186.9,186.87,0.7993847]
[1722073441692,5.3508,186.89,186.87,0.7993847]
[1722073441865,1.33720562,186.88,186.87,0.7993847]
[1722073442981,16.67920562,186.88,186.87,0.7993847]
[1722073443184,29.01920562,186.88,186.87,0.7993847]
[1722073444283,34.37020562,186.88,186.87,0.7993847]
[1722073445382,54.37020562,186.88,186.87,0.7993847]
[1722073445592,99.37020562,186.88,186.87,0.7993847]
[1722073445905,20.0,186.87,186.75,12.34]
[1722073446103,12.34,186.82,186.75,12.34]
[1722073446405,13.67720562,186.81,186.74,12.34]
[1722073446575,12.34,186.8,186.74,12.34]
[1722073446779,12.34,186.8,186.73,1.07087181]
[1722073446780,12.34,186.8,186.73,13.41087181]
[1722073447182,5.3527,186.82,186.72,6.1602]
[1722073447388,56.29735326,186.84,186.73,12.34]
[1722073447389,5.353,186.81,186.73,12.34]
[1722073447675,6.69050562,186.8,186.73,12.34]
[1722073448006,12.34,186.77,186.68,0.7993847]
[1722073448303,12.34,186.77,186.7,12.34]
[1722073448508,12.34,186.77,186.68,0.7993847]
[1722073448715,12.34,186.77,186.7,12.34]
[1722073449400,28.3398,186.79,186.72,12.34]
[1722073449573,15.9998,186.79,186.72,12.34]
[1722073449776,28.3398,186.79,186.72,12.34]
[1722073450899,28.3398,186.79,186.73,12.34]
[1722073450900,15.9998,186.79,186.73,12.34]
[1722073451210,12.34,186.8,186.74,12.34]
[1722073451721,12.34,186.82,186.75,12.34]
[1722073452023,5.60014764,186.84,186.78,12.34]
[1722073452817,5.60014764,186.84,186.8,12.34]
[1722073453019,12.34,186.88,186.82,12.34]
[1722073453332,12.34,186.87,186.8,12.34]
[1722073454201,12.34,186.88,186.81,12.34]
[1722073454812,12.34,186.88,186.79,45.0]
[1722073454813,12.34,186.87,186.8,12.34]
[1722073455204,13.67720562,186.86,186.79,12.34]
[1722073455515,19.02880562,186.86,186.79,12.34]
[1722073455707,1.33720562,186.85,186.79,12.34]
[1722073456098,12.34,186.85,186.79,12.34]
[1722073457197,12.34,186.85,186.77,15.0176]
[1722073457198,12.34,186.83,186.76,12.34]
[1722073457520,6.68910562,186.85,186.76,12.34]
[1722073457726,12.34,186.83,186.76,12.34]
[1722073462202,1.33720562,186.82,186.76,12.34]
[1722073463720,13.67720562,186.82,186.72,15.0176]
[1722073463920,13.67720562,186.82,186.75,12.34]
[1722073464120,12.34,186.81,186.75,12.34]
[1722073464920,1.33720562,186.8,186.75,12.34]
[1722073465316,1.33720562,186.8,186.74,12.34]
[1722073465507,13.67720562,186.8,186.74,12.34]
[1722073465914,12.34,186.79,186.73,45.0]
[1722073466129,12.34,186.8,186.73,12.34]
[1722073467837,13.67720562,186.79,186.71,6.4101]
[1722073468139,12.34,186.78,186.71,18.7501]
[1722073469434,12.34,186.78,186.71,6.4101]
[1722073469732,12.34,186.78,186.71,18.7501]
[1722073471415,12.34,186.78,186.71,12.34]
[1722073472231,12.34,186.77,186.71,12.34]
[1722073474318,12.34,186.77,186.68,16.9158847]
[1722073474522,12.34,186.77,186.7,12.34]
[1722073487644,5.3539,186.78,186.7,12.34]
[1722073487852,5.3539,186.78,186.71,57.34]
[1722073487853,12.34,186.78,186.71,57.34]
[1722073488150,5.3536,186.79,186.68,0.7993847]
[1722073488151,17.6941,186.77,186.68,0.7993847]
[1722073488449,12.34,186.76,186.7,12.34]
[1722073495143,12.34,186.78,186.72,12.34]
[1722073495751,12.34,186.78,186.68,1.87035006]
[1722073495954,12.34,186.78,186.68,21.87035006]
[1722073496156,12.34,186.78,186.69,45.0]
[1722073499645,17.6939,186.78,186.69,45.0]
[1722073501649,5.60112055,186.81,186.69,45.0]
[1722073501650,5.60112055,186.81,186.7,21.07100824]
[1722073501849,5.60112055,186.81,186.75,12.34]
[1722073502167,12.34,186.8,186.73,12.34]
[1722073502368,12.34,186.8,186.74,45.0]
[1722073503685,12.34,186.8,186.74,57.34]
[1722073504451,10.95412055,186.81,186.75,12.34]
[1722073504452,12.34,186.81,186.75,12.34]
[1722073504653,15.8628,186.82,186.75,12.34]
[1722073504872,12.34,186.81,186.75,12.34]
[1722073505083,28.2028,186.82,186.76,45.0]
[1722073505284,28.2028,186.82,186.76,57.34]
[1722073505285,15.8628,186.82,186.76,57.34]
[1722073505677,15.8628,186.82,186.77,12.34]
[1722073506075,15.8628,186.82,186.78,12.34]
[1722073506462,15.8628,186.82,186.79,12.34]
[1722073507288,28.2028,186.82,186.76,57.34]
[1722073509185,28.2028,186.82,186.76,12.34]
[1722073509485,12.34,186.81,186.75,12.34]
[1722073509986,12.34,186.81,186.74,12.34]
[1722073510183,12.34,186.81,186.75,12.34]
[1722073513985,12.34,186.81,186.68,0.7993847]
[1722073513986,12.34,186.79,186.72,12.34]
[1722073514172,12.34,186.78,186.72,12.34]
[1722073514686,12.34,186.79,186.72,12.34]
[1722073515194,8.05907269,186.81,186.73,12.34]
[1722073515393,8.05907269,186.81,186.68,1.87039537]
[1722073515394,20.39907269,186.81,186.74,12.34]
[1722073515575,20.39907269,186.81,186.68,1.87039537]
[1722073515576,1.56947269,186.81,186.76,12.34]
[1722073515783,15.8628,186.82,186.76,12.34]
[1722073516173,28.2028,186.82,186.76,12.34]
[1722073516983,15.8628,186.82,186.76,12.34]
[1722073517992,15.8628,186.82,186.78,12.34]
[1722073518199,15.8628,186.82,186.68,17.96039537]
[1722073518200,12.34,186.85,186.79,12.34]
[1722073518968,21.6182,186.86,186.79,12.34]
[1722073519172,12.34,186.85,186.79,12.34]
[1722073519373,12.34,186.85,186.78,12.34]
[1722073519581,13.67720562,186.85,186.78,12.34]
[1722073519776,12.34,186.85,186.78,12.34]
[1722073520687,12.34,186.84,186.78,12.34]
[1722073520871,12.34,186.83,186.76,12.34]
[1722073521073,12.34,186.82,186.75,12.34]
[1722073521272,21.6182,186.86,186.74,12.34]
[1722073521273,12.34,186.81,186.74,12.34]
[1722073521498,12.34,186.81,186.75,12.34]
[1722073522501,5.3522,186.84,186.75,12.34]
[1722073522685,12.34,186.82,186.76,12.34]
[1722073523197,12.34,186.83,186.76,12.34]
[1722073523895,8.25857831,186.85,186.76,12.34]
[1722073523896,12.34,186.82,186.76,12.34]
[1722073525195,12.34,186.82,186.75,12.34]
[1722073525405,12.34,186.82,186.76,45.0]
[1722073525605,12.34,186.82,186.76,57.34]
[1722073526315,12.34,186.83,186.76,57.34]
[1722073526615,13.67720562,186.83,186.76,12.34]
[1722073526991,12.34,186.82,186.75,12.34]
[1722073528095,12.34,186.82,186.76,12.34]
[1722073528296,12.34,186.83,186.76,12.34]
[1722073529338,17.93112071,186.84,186.77,12.34]
[1722073529810,23.28332071,186.84,186.77,12.34]
[1722073530120,12.34,186.83,186.77,12.34]
[1722073530627,10.94332071,186.84,186.78,12.34]
[1722073530628,5.59112071,186.84,186.78,12.34]
[1722073530794,5.59112071,186.84,186.79,12.34]
[1722073530995,21.6182,186.86,186.81,12.34]
[1722073531491,39.3098,186.86,186.79,12.34]
[1722073531891,40.64700562,186.86,186.79,12.34]
[1722073532116,39.3098,186.86,186.79,12.34]
[1722073532417,5.3519,186.85,186.79,12.34]
[1722073532803,17.6919,186.85,186.79,12.34]
[1722073534420,12.34,186.85,186.79,12.34]
[1722073536722,19.02910562,186.85,186.79,12.34]
[1722073536900,17.6919,186.85,186.79,12.34]
[1722073538026,12.34,186.85,186.79,12.34]
[1722073539921,12.34,186.85,186.73,6.4817]
[1722073540221,12.34,186.84,186.78,12.34]
[1722073544830,13.67720562,186.83,186.74,20.0]
[1722073545034,13.67720562,186.82,186.75,12.34]
[1722073545404,5.59071473,186.85,186.77,12.34]
[1722073545405,12.34,186.83,186.77,12.34]
[1722073545723,12.34,186.78,186.68,0.7993847]
[1722073545924,1.33720562,186.77,186.71,12.34]
[1722073546126,6.69070562,186.8,186.72,12.34]
[1722073546333,1.33720562,186.79,186.72,12.34]
[1722073546499,6.69080562,186.79,186.72,12.34]
[1722073547008,5.3539,186.78,186.72,12.34]
[1722073547202,1.33720562,186.77,186.72,12.34]
[1722073548127,1.33720562,186.76,186.72,12.34]
[1722073548330,1.33720562,186.76,186.71,12.34]
[1722073548515,5.3536,186.79,186.71,12.34]
[1722073548925,5.3536,186.79,186.72,12.34]
[1722073549510,1.33720562,186.8,186.72,12.34]
[1722073549511,5.3533,186.8,186.72,12.34]
[1722073550735,5.3536,186.79,186.72,12.34]
[1722073551928,12.28297229,186.79,186.72,12.34]
[1722073552109,5.59216667,186.79,186.73,12.34]
[1722073552317,5.59216667,186.79,186.74,12.34]
[1722073553005,5.3533,186.8,186.74,12.34]
[1722073555034,5.3536,186.79,186.74,12.34]
[1722073555327,5.3539,186.78,186.74,12.34]
[1722073555524,5.3539,186.78,186.73,12.34]
[1722073558141,5.3539,186.78,186.72,12.34]
[1722073560339,5.3536,186.79,186.73,12.34]
[1722073560542,5.3533,186.8,186.73,12.34]
[1722073562138,27.80874418,186.82,186.75,12.34]
[1722073562344,45.50164418,186.82,186.75,12.34]
[1722073563025,12.34,186.81,186.75,12.34]
[1722073563225,17.693,186.81,186.75,12.34]
[1722073563443,5.3533,186.8,186.74,12.34]
[1722073564227,5.3533,186.8,186.68,1.87031223]
[1722073564426,5.3533,186.8,186.74,12.34]
[1722073564830,17.6933,186.8,186.74,12.34]
[1722073565251,17.6933,186.8,186.73,12.34]
[1722073565557,17.6939,186.78,186.68,0.7993847]
[1722073565861,1.33720562,186.79,186.68,0.7993847]
[1722073565862,28.4873,186.76,186.69,12.34]
[1722073566454,28.4873,186.76,186.7,12.34]
[1722073566755,29.82450562,186.76,186.7,12.34]
[1722073566939,28.4873,186.76,186.7,12.34]
[1722073567145,16.1473,186.76,186.71,12.34]
[1722073567339,16.1473,186.76,186.72,12.34]
[1722073567543,1.56947269,186.8,186.74,12.34]
[1722073567854,1.56947269,186.8,186.75,12.34]
[1722073569458,1.56947269,186.8,186.74,12.34]
[1722073569949,13.90947269,186.8,186.74,12.34]
[1722073571255,13.90947269,186.8,186.73,12.34]
[1722073571434,1.33720562,186.79,186.73,12.34]
[1722073571753,15.24667831,186.8,186.73,12.34]
[1722073571956,1.33720562,186.79,186.73,12.34]
[1722073572350,13.67720562,186.79,186.72,12.34]
[1722073572849,13.67720562,186.79,186.71,12.34]
[1722073572850,12.34,186.78,186.71,12.34]
[1722073573051,13.67720562,186.77,186.71,12.34]
[1722073573254,12.34,186.77,186.68,0.7993847]
[1722073573445,1.33720562,186.76,186.7,12.34]
[1722073575359,12.34,186.77,186.7,12.34]
[1722073575567,13.67720562,186.76,186.69,12.34]
[1722073576957,16.1473,186.75,186.69,12.34]
[1722073577460,16.1473,186.75,186.68,0.7993847]
[1722073577461,12.34,186.73,186.68,0.7993847]
[1722073577664,6.034,186.74,186.68,0.7993847]
[1722073577954,6.034,186.74,186.7,12.34]
[1722073578157,16.1473,186.75,186.7,12.34]
[1722073579551,16.1473,186.75,186.69,12.34]
[1722073579945,16.1473,186.75,186.7,12.34]
[1722073580639,16.1473,186.75,186.68,0.7993847]
[1722073580936,16.1473,186.75,186.69,12.34]
[1722073582366,16.1473,186.75,186.7,12.34]
[1722073583672,35.17920562,186.75,186.68,13.1393847]
[1722073583966,5.355,186.74,186.68,13.1393847]
[1722073586263,13.67720562,186.73,186.68,0.7993847]
[1722073586868,12.34,186.74,186.68,0.7993847]
[1722073587052,21.5021,186.75,186.68,13.1393847]
[1722073587053,33.8421,186.75,186.68,13.1393847]
[1722073587562,28.4873,186.75,186.68,13.1393847]
[1722073588261,33.8421,186.75,186.68,13.1393847]
[1722073588561,19.03230562,186.74,186.68,0.7993847]
[1722073589069,13.67720562,186.74,186.68,0.7993847]
[1722073589742,1.33720562,186.74,186.68,0.7993847]
[1722073589943,33.8421,186.75,186.68,0.7993847]
[1722073591243,1.33720562,186.74,186.68,0.7993847]
[1722073591870,13.67720562,186.74,186.68,0.7993847]
[1722073593751,12.34,186.74,186.68,0.7993847]
[1722073593952,16.1473,186.75,186.68,13.1393847]
[1722073593953,28.4873,186.75,186.68,13.1393847]
[1722073596774,12.34,186.74,186.68,0.7993847]
[1722073596968,1.33720562,186.73,186.68,0.7993847]
[1722073597945,12.34,186.74,186.68,0.7993847]
[1722073598152,19.03220562,186.74,186.68,0.7993847]
[1722073598474,1.33720562,186.73,186.68,0.7993847]
[1722073598676,13.67720562,186.73,186.68,0.7993847]
[1722073599183,12.34,186.73,186.68,0.7993847]
[1722073599475,13.67720562,186.73,186.68,0.7993847]
[1722073599772,12.34,186.73,186.68,0.7993847]
[1722073601275,13.67720562,186.74,186.68,0.7993847]
[1722073602780,19.03230562,186.74,186.68,0.7993847]
[1722073607179,21.75008241,186.75,186.68,0.7993847]
[1722073607378,6.034,186.78,186.71,12.34]
[1722073607584,17.33997269,186.8,186.74,12.34]
[1722073607763,1.56947269,186.8,186.75,12.34]
[1722073607969,12.34,186.82,186.76,12.34]
[1722073608482,17.6928,186.82,186.76,12.34]
[1722073609372,17.6928,186.82,186.75,12.34]
[1722073610384,5.3524,186.84,186.76,12.34]
[1722073610551,21.37402373,186.85,186.79,12.34]
[1722073611674,17.6922,186.84,186.78,12.34]
[1722073611979,17.6926,186.83,186.76,12.34]
[1722073612181,12.34,186.82,186.76,12.34]
[1722073612388,12.34,186.81,186.75,12.34]
[1722073612760,1.33720562,186.84,186.73,12.34]
[1722073612761,12.34,186.8,186.73,12.34]
[1722073613986,17.6931,186.81,186.74,12.34]
[1722073614164,12.34,186.81,186.74,12.34]
[1722073616256,21.37402373,186.85,186.77,12.34]
[1722073616468,12.34,186.84,186.77,12.34]
[1722073616877,21.37402373,186.85,186.77,12.34]
[1722073617071,12.34,186.84,186.77,12.34]
[1722073617267,39.06582373,186.85,186.78,12.34]
[1722073617581,1.33720562,186.84,186.78,12.34]
[1722073617886,17.6921,186.84,186.77,12.34]
[1722073618174,5.3521,186.84,186.77,12.34]
[1722073618382,12.34,186.83,186.77,12.34]
[1722073620770,1.33720562,186.84,186.77,12.34]
[1722073620955,12.34,186.83,186.71,16.6057]
[1722073621163,12.34,186.83,186.77,12.34]
[1722073621679,12.34,186.84,186.78,12.34]
[1722073621897,21.37402373,186.85,186.8,12.34]
[1722073622179,21.37402373,186.85,186.81,12.34]
[1722073622767,21.37402373,186.85,186.75,12.34]
[1722073622768,21.37402373,186.85,186.8,12.34]
[1722073623067,21.37402373,186.85,186.79,12.34]
[1722073623275,33.71402373,186.85,186.78,12.34]
[1722073623480,5.3522,186.84,186.78,12.34]
[1722073624187,17.6922,186.84,186.77,12.34]
[1722073624698,5.3524,186.83,186.77,12.34]
[1722073624895,17.6922,186.84,186.77,12.34]
[1722073625081,17.6922,186.84,186.71,17.67640672]
[1722073625279,17.6922,186.84,186.77,12.34]
[1722073626089,17.6922,186.84,186.78,12.34]
[1722073626301,21.37402373,186.85,186.8,12.34]
[1722073626480,5.60352373,186.85,186.83,12.34]
[1722073626677,16.1187,186.9,186.84,12.34]
[1722073628195,21.4692,186.9,186.84,12.34]
[1722073628398,16.1187,186.9,186.85,12.34]
[1722073628699,12.34,186.92,186.85,12.34]
[1722073630300,17.6899,186.92,186.85,12.34]
[1722073633005,5.3499,186.92,186.85,12.34]
[1722073633298,17.6896,186.93,186.86,12.34]
[1722073633500,5.3496,186.93,186.87,12.34]
[1722073634208,12.34,186.94,186.88,12.34]
[1722073635903,39.4088219,186.95,186.88,12.34]
[1722073637005,17.6893,186.94,186.88,12.34]
[1722073637305,19.02700562,186.93,186.86,12.34]
[1722073637507,5.3499,186.92,186.86,12.34]
[1722073637701,6.68710562,186.92,186.86,12.34]
[1722073637999,19.02710562,186.92,186.85,12.34]
[1722073638194,19.02710562,186.92,186.84,12.34]
[1722073638397,12.34,186.91,186.84,12.34]
[1722073639908,12.34,186.9,186.83,12.34]
[1722073640202,41.7196219,186.95,186.83,12.34]
[1722073640203,12.34,186.89,186.83,12.34]
[1722073640888,12.34,186.88,186.81,12.34]
[1722073641095,1.33720562,186.87,186.81,12.34]